fUST/lending_fUST_20241217
["ID","MTS","AMOUNT","RATE_DAILY","PERIOD"]
[345744680,1734448253236,-500.0,0.00027808,2]
[345744682,1734448253246,-199.10541014,0.00027808,2]
[345744684,1734448253256,-151.0,0.00027824,7]
[345744686,1734448253266,-151.0,0.00027824,7]
[345744688,1734448253275,-151.0,0.00027824,7]
[345744690,1734448253284,-151.0,0.00027824,7]
[345744692,1734448253293,-151.0,0.00027824,7]
[345744694,1734448253303,-151.0,0.00027835,7]
[345744696,1734448253312,-190.332689,0.00027835,7]
[345744698,1734448253321,-1000.0,0.00027849,30]
[345744700,1734448253331,-17766.00188431,0.0002785,10]
[345744702,1734448253340,-143902.15591548,0.00027858,2]
[345744704,1734448253349,-151.0,0.00027858,7]
[345744706,1734448253359,-151.0,0.00027858,7]
[345744708,1734448253368,-151.0,0.00027858,7]
[345744710,1734448253377,-151.0,0.00027858,7]
[345744712,1734448253387,-151.0,0.00027858,7]
[345744714,1734448253396,-191.183964,0.00027858,7]
[345744716,1734448253405,-151.0,0.00027858,7]
[345744718,1734448253415,-500.0,0.00027858,7]
[345744720,1734448253424,-500.0,0.00027858,7]
[345744722,1734448253433,-151.0,0.00027858,7]
[345744724,1734448253442,-536.739162,0.00027858,7]
[345744726,1734448253451,-536.739162,0.00027858,7]
[345744728,1734448253461,-283.695409,0.00027858,7]
[345744730,1734448253470,-283.695405,0.00027858,7]
[345744732,1734448253479,-408.274941,0.00027858,7]
[345744734,1734448253488,-408.274948,0.00027858,7]
[345744736,1734448253497,-151.0,0.00027858,7]
[345744738,1734448253506,-162.828682,0.00027858,7]
[345744740,1734448253516,-162.828683,0.00027858,7]
[345744742,1734448253525,-151.0,0.00027858,7]
[345744744,1734448253535,-341.478595,0.00027858,7]
[345744746,1734448253544,-341.478599,0.00027858,7]
[345744748,1734448253553,-151.0,0.00027858,7]
[345744750,1734448253563,-153.209255,0.00027858,7]
[345744752,1734448253572,-153.209261,0.00027858,7]
[345744754,1734448253581,-282.64764,0.00027858,7]
[345744756,1734448253591,-282.647642,0.00027858,7]
[345744758,1734448253600,-151.0,0.00027858,7]
[345744760,1734448253610,-944.144999,0.00027858,7]
[345744762,1734448253619,-944.145007,0.00027858,7]
[345744764,1734448253628,-196.471104,0.00027858,7]
[345744766,1734448253638,-196.47111088,0.00027858,7]
[345744768,1734448253647,-151.0,0.00027858,7]
[345744770,1734448253657,-151.0,0.00027878,7]
[345744772,1734448253666,-151.0,0.00027878,7]
[345744774,1734448253675,-151.0,0.00027878,7]
[345744776,1734448253684,-151.0,0.00027878,7]
[345744778,1734448253693,-230.803586,0.00027878,7]
[345744780,1734448253702,-151.0,0.00027878,7]
[345744782,1734448253712,-151.0,0.00027878,7]
[345744784,1734448253721,-151.0,0.00027878,7]
[345744786,1734448253730,-151.0,0.00027878,7]
[345744788,1734448253740,-151.0,0.00027878,7]
[345744790,1734448253749,-151.0,0.00027878,7]
[345744792,1734448253759,-151.0,0.00027878,7]
[345744794,1734448253769,-151.0,0.00027878,7]
[345744796,1734448253778,-151.0,0.00027878,7]
[345744798,1734448253787,-240.037541,0.00027878,7]
[345744800,1734448253796,-500.0,0.00027878,7]
[345744802,1734448253805,-500.0,0.00027878,7]
[345744804,1734448253816,-500.0,0.00027878,7]
[345744806,1734448253826,-500.0,0.00027878,7]
[345744808,1734448253835,-151.0,0.00027878,7]
[345744810,1734448253844,-151.0,0.00027878,7]
[345744812,1734448253854,-536.739162,0.00027878,7]
[345744823,1734448253953,-536.73916863,0.00027878,7]
[345744825,1734448253964,-548866.42436852,0.00027895,10]
[345744827,1734448253976,-2066.24234655,0.00027895,10]
[345744843,1734448254112,-500.0,0.00024873,2]
[345744845,1734448254123,-152.0,0.00024877,2]
[345744847,1734448254147,-151.0,0.000249,7]
[345744849,1734448254156,-500.0,0.00024931,2]
[345744851,1734448254166,-151.0,0.00025,7]
[345744852,1734448254175,-151.0,0.00025,7]
[345744854,1734448254184,-151.0,0.00025,7]
[345744857,1734448254194,-151.0,0.00025,7]
[345744859,1734448254204,-151.0,0.00025,7]
[345744861,1734448254214,-151.0,0.00025,7]
[345744863,1734448254223,-500.0,0.00025205,2]
[345744865,1734448254233,-500.0,0.00025479,2]
[345744867,1734448254242,-151.0,0.00025479,7]
[345744869,1734448254251,-151.0,0.00025479,7]
[345744871,1734448254261,-151.0,0.00025479,7]
[345744873,1734448254270,-270.15,0.00025753,2]
[345744875,1734448254280,-151.0,0.00026,7]
[345744877,1734448254289,-151.0,0.00026,7]
[345744879,1734448254298,-151.0,0.00026,7]
[345744880,1734448254308,-151.0,0.00026,7]
[345744881,1734448254318,-159.832553,0.00026,7]
[345744882,1734448254327,-151.0,0.000265,7]
[345744883,1734448254337,-151.0,0.000265,7]
[345744884,1734448254346,-19012.017447,0.00027895,10]
[345744885,1734448254382,-170.0,0.00026,2]
[345744886,1734448254392,-152.01642926,0.00026464,2]
[345744887,1734448254404,-177.12903833,0.00026464,2]
[345744889,1734448254414,-151.0,0.00027,7]
[345744890,1734448254423,-151.0,0.00027,7]
[345744893,1734448254433,-151.0,0.00027397,7]
[345744895,1734448254443,-334.57568834,0.00027895,10]
[345752667,1734448553182,1000.0,0.00025,120]
[345752668,1734448569929,1000.0,0.00024,60]
[345752675,1734448606908,167.462916,0.00013973,2]
[345752716,1734448734804,2686.3042,0.00015784,2]
[345752793,1734449325917,5025.499999,0.0002,120]
[345752895,1734449438287,-457.97681533,0.0002277,2]
[345752896,1734449438297,-754.999999,0.00023,2]
[345752897,1734449438309,-3696.3,0.00023331,2]
[345752899,1734449438318,-2868.4893382,0.00023556,2]
[345752901,1734449438328,-650.2556135,0.00023566,11]
[345752902,1734449438338,-331.0529309,0.00023576,2]
[345752904,1734449438347,-159.5923543,0.00023598,2]
[345752906,1734449438357,-208.28692181,0.00024357,2]
[345752908,1734449438367,-206.44449751,0.00024457,2]
[345752910,1734449438377,-172.741,0.00024457,7]
[345752912,1734449438387,-300.0,0.00024556,2]
[345752914,1734449438396,-300.0,0.00024556,2]
[345752916,1734449438406,-6561.93668963,0.00024557,7]
[345752918,1734449438415,-666.0,0.00024557,2]
[345752920,1734449438425,-176.13,0.00024647,2]
[345752922,1734449438434,-487.24926719,0.00024656,2]
[345752924,1734449438443,-500.0,0.00024657,6]
[345752927,1734449438457,-495.0345511,0.00024657,6]
[345752929,1734449438467,-500.0,0.00024657,6]
[345752930,1734449438476,-500.0,0.00024657,6]
[345752932,1734449438486,-500.0,0.00024657,6]
[345752934,1734449438496,-500.0,0.00024657,2]
[345752936,1734449438505,-500.0,0.00024657,6]
[345752939,1734449438516,-500.0,0.00024657,6]
[345752940,1734449438526,-500.0,0.00024657,6]
[345752942,1734449438535,-500.0,0.00024657,6]
[345752944,1734449438545,-500.0,0.00024657,6]
[345752946,1734449438554,-376.84215997,0.00024657,6]
[345752948,1734449438564,-500.0,0.00024657,6]
[345752951,1734449438573,-502.66,0.00024657,6]
[345752952,1734449438583,-500.0,0.00024657,6]
[345752954,1734449438593,-500.0,0.00024657,6]
[345752956,1734449438602,-500.0,0.00024657,6]
[345752958,1734449438613,-500.0,0.00024657,6]
[345752960,1734449438622,-500.0,0.00024657,6]
[345752962,1734449438634,-500.0,0.00024657,6]
[345752964,1734449438643,-500.0,0.00024657,6]
[345752966,1734449438653,-500.0,0.00024657,6]
[345752968,1734449438662,-500.0,0.00024657,6]
[345752970,1734449438674,-518.09047484,0.00024657,6]
[345752972,1734449438683,-500.0,0.00024657,6]
[345752974,1734449438692,-500.0,0.00024657,6]
[345752976,1734449438704,-500.0,0.00024657,6]
[345752978,1734449438714,-514.24440258,0.00024657,6]
[345752980,1734449438724,-500.0,0.00024657,6]
[345752982,1734449438733,-500.0,0.00024657,6]
[345752984,1734449438743,-500.0,0.00024657,6]
[345752986,1734449438752,-629.52,0.00024657,6]
[345752988,1734449438762,-500.0,0.00024657,6]
[345752990,1734449438771,-888.82,0.00024657,6]
[345752992,1734449438780,-500.0,0.00024657,6]
[345752994,1734449438790,-1617.75,0.00024657,6]
[345752996,1734449438799,-979.73,0.00024657,6]
[345752998,1734449438809,-765.64,0.00024657,6]
[345753000,1734449438820,-500.0,0.00024657,6]
[345753002,1734449438829,-1112.55,0.00024657,6]
[345753004,1734449438838,-500.0,0.00024657,6]
[345753006,1734449438848,-489.07619385,0.00024657,6]
[345753008,1734449438857,-6168.17,0.00024657,6]
[345753010,1734449438867,-500.0,0.00024657,6]
[345753012,1734449438876,-217.22380615,0.00024657,6]
[345753014,1734449438886,-500.0,0.00024657,6]
[345753016,1734449438896,-241.0,0.00024657,6]
[345753018,1734449438905,-500.0,0.00024657,6]
[345753020,1734449438915,-500.0,0.00024657,6]
[345753022,1734449438925,-500.0,0.00024657,6]
[345753024,1734449438935,-856.93,0.00024657,6]
[345753026,1734449438944,-500.0,0.00024657,6]
[345753028,1734449438956,-500.0,0.00024657,6]
[345753030,1734449438967,-500.0,0.00024657,6]
[345753032,1734449438976,-500.0,0.00024657,6]
[345753034,1734449438986,-500.0,0.00024657,6]
[345753036,1734449438996,-1174.52,0.00024657,6]
[345753039,1734449439006,-209.68365051,0.00024657,6]
[345753042,1734449439016,-500.0,0.00024657,2]
[345753045,1734449439026,-418.3977199,0.00024657,6]
[345753046,1734449439036,-757.36,0.00024657,6]
[345753049,1734449439045,-500.0,0.00024657,6]
[345753051,1734449439054,-500.0,0.00024657,6]
[345753052,1734449439063,-500.0,0.00024657,6]
[345753053,1734449439072,-500.0,0.00024657,6]
[345753054,1734449439082,-500.0,0.00024657,6]
[345753055,1734449439091,-500.0,0.00024657,6]
[345753056,1734449439100,-500.0,0.00024657,6]
[345753057,1734449439110,-500.0,0.00024657,6]
[345753058,1734449439119,-2344.59,0.00024657,6]
[345753059,1734449439129,-719.11,0.00024657,6]
[345753060,1734449439138,-500.0,0.00024657,6]
[345753061,1734449439148,-476.51759077,0.00024657,6]
[345753062,1734449439158,-500.0,0.00024657,6]
[345753063,1734449439168,-500.0,0.00024657,6]
[345753064,1734449439178,-634.97,0.00024657,6]
[345753065,1734449439188,-500.0,0.00024657,6]
[345753066,1734449439198,-500.0,0.00024657,6]
[345753067,1734449439214,-500.0,0.00024657,6]
[345753068,1734449439225,-500.0,0.00024657,6]
[345753069,1734449439235,-500.0,0.00024657,6]
[345753070,1734449439245,-500.0,0.00024657,6]
[345753071,1734449439255,-500.0,0.00024657,6]
[345753072,1734449439265,-1446.5,0.00024657,2]
[345753073,1734449439275,-500.0,0.00024657,6]
[345753074,1734449439285,-500.0,0.00024657,6]
[345753075,1734449439294,-500.0,0.00024657,6]
[345753076,1734449439303,-500.0,0.00024657,6]
[345753077,1734449439314,-500.0,0.00024657,6]
[345753078,1734449439324,-500.0,0.00024657,6]
[345753079,1734449439334,-502.13379474,0.00024657,6]
[345753080,1734449439344,-500.0,0.00024673,2]
[345753081,1734449439353,-501.42537696,0.00024673,2]
[345753082,1734449439363,-500.0,0.00024673,2]
[345753083,1734449439372,-151.01064024,0.00024673,2]
[345753084,1734449439381,-2154.0,0.00024749,2]
[345753085,1734449439391,-2368.0,0.00024749,2]
[345753086,1734449439402,-469.24,0.00024749,2]
[345753087,1734449439412,-503.64071924,0.00024931,6]
[345753088,1734449439422,-500.0,0.00024931,2]
[345753089,1734449439432,-500.0,0.00024931,6]
[345753090,1734449439442,-500.0,0.00024931,6]
[345753091,1734449439459,-594.9,0.00024931,6]
[345753092,1734449439469,-500.0,0.00024931,6]
[345753093,1734449439479,-543.22,0.00024931,6]
[345753094,1734449439489,-500.0,0.00024931,6]
[345753095,1734449439499,-888.82,0.00024931,6]
[345753096,1734449439509,-613.5,0.00024931,6]
[345753097,1734449439520,-1617.75,0.00024931,6]
[345753098,1734449439529,-979.73,0.00024931,6]
[345753099,1734449439539,-765.64,0.00024931,6]
[345753100,1734449439548,-500.0,0.00024931,6]
[345753101,1734449439557,-1112.55,0.00024931,6]
[345753102,1734449439567,-6168.17,0.00024931,6]
[345753103,1734449439576,-302.69,0.00024931,6]
[345753104,1734449439586,-500.0,0.00024931,6]
[345753105,1734449439596,-159.89,0.00024931,6]
[345753106,1734449439605,-856.93,0.00024931,6]
[345753107,1734449439618,-500.0,0.00024931,6]
[345753108,1734449439629,-500.0,0.00024931,6]
[345753109,1734449439639,-500.0,0.00024931,6]
[345753110,1734449439649,-170063.95078292,0.00024931,2]
[345753111,1734449439659,-500.0,0.00024931,6]
[345753112,1734449439669,-1174.52,0.00024931,6]
[345753113,1734449439679,-757.36,0.00024931,6]
[345753114,1734449439688,-500.0,0.00024931,6]
[345753115,1734449439697,-500.0,0.00024931,6]
[345753116,1734449439713,-538.17,0.00024931,6]
[345753118,1734449439723,-500.0,0.00024931,6]
[345753119,1734449439732,-500.0,0.00024931,6]
[345753120,1734449439742,-500.0,0.00024931,6]
[345753121,1734449439751,-2344.59,0.00024931,6]
[345753122,1734449439761,-719.11,0.00024931,6]
[345753123,1734449439770,-500.0,0.00024931,6]
[345753124,1734449439780,-500.0,0.00024931,6]
[345753125,1734449439790,-500.0,0.00024931,6]
[345753126,1734449439800,-500.0,0.00024931,6]
[345753127,1734449439810,-500.0,0.00024931,6]
[345753128,1734449439819,-1446.5,0.00024931,2]
[345753129,1734449439829,-500.0,0.00024931,6]
[345753131,1734449439839,-500.0,0.00024931,6]
[345753133,1734449439849,-500.0,0.00024931,6]
[345753134,1734449439858,-500.0,0.00024931,6]
[345753136,1734449439868,-562.05,0.00024931,6]
[345753137,1734449439878,-425.22147868,0.00024973,2]
[345753138,1734449439887,-500.0,0.00024973,2]
[345753139,1734449439898,-500.0,0.00024973,2]
[345753140,1734449439907,-233.20770029,0.00024973,2]
[345753141,1734449439916,-160.74203118,0.00024973,2]
[345753142,1734449439926,-500.0,0.00024999,2]
[345753143,1734449439935,-379.91238608,0.00024999,2]
[345753144,1734449439945,-500.0,0.00024999,2]
[345753145,1734449439957,-500.0,0.00024999,2]
[345753146,1734449439967,-500.0,0.00024999,2]
[345753147,1734449439977,-500.0,0.00024999,2]
[345753148,1734449439987,-500.0,0.00024999,2]
[345753149,1734449439997,-467.4456387,0.00024999,2]
[345753150,1734449440006,-500.0,0.00024999,2]
[345753151,1734449440016,-500.0,0.00024999,2]
[345753152,1734449440026,-500.0,0.00024999,2]
[345753153,1734449440036,-500.0,0.00024999,2]
[345753154,1734449440045,-500.0,0.00024999,2]
[345753155,1734449440055,-500.0,0.00024999,2]
[345753156,1734449440064,-500.0,0.00024999,2]
[345753157,1734449440074,-500.0,0.00024999,2]
[345753158,1734449440084,-500.0,0.00024999,2]
[345753159,1734449440094,-500.0,0.00024999,2]
[345753160,1734449440103,-500.0,0.00024999,2]
[345753161,1734449440113,-500.0,0.00024999,2]
[345753162,1734449440122,-500.0,0.00024999,2]
[345753163,1734449440132,-500.0,0.00024999,2]
[345753164,1734449440142,-500.0,0.00024999,2]
[345753165,1734449440152,-500.0,0.00024999,2]
[345753166,1734449440162,-500.0,0.00024999,2]
[345753167,1734449440171,-500.0,0.00024999,2]
[345753168,1734449440181,-233.61190423,0.00024999,2]
[345753169,1734449440191,-500.0,0.00024999,2]
[345753170,1734449440203,-500.0,0.00024999,2]
[345753171,1734449440212,-500.0,0.00024999,2]
[345753172,1734449440222,-500.0,0.00024999,2]
[345753173,1734449440231,-500.0,0.00024999,2]
[345753174,1734449440241,-500.0,0.00024999,2]
[345753175,1734449440250,-500.0,0.00024999,2]
[345753176,1734449440260,-514.39163715,0.00024999,2]
[345753177,1734449440270,-500.0,0.00024999,2]
[345753178,1734449440280,-500.0,0.00024999,2]
[345753179,1734449440289,-500.0,0.00024999,2]
[345753180,1734449440299,-500.0,0.00024999,2]
[345753181,1734449440309,-500.0,0.00024999,2]
[345753182,1734449440318,-500.0,0.00024999,2]
[345753183,1734449440328,-250.0,0.00024999,2]
[345753184,1734449440337,-500.0,0.00024999,2]
[345753185,1734449440347,-500.0,0.00024999,2]
[345753186,1734449440356,-500.0,0.00024999,2]
[345753187,1734449440365,-500.0,0.00024999,2]
[345753188,1734449440375,-500.0,0.00024999,2]
[345753189,1734449440385,-500.0,0.00024999,2]
[345753190,1734449440394,-500.0,0.00024999,2]
[345753191,1734449440404,-500.0,0.00024999,2]
[345753192,1734449440414,-500.0,0.00024999,2]
[345753193,1734449440423,-500.0,0.00024999,2]
[345753194,1734449440433,-500.0,0.00024999,2]
[345753195,1734449440443,-500.0,0.00024999,2]
[345753196,1734449440456,-500.0,0.00024999,2]
[345753197,1734449440465,-500.0,0.00024999,2]
[345753198,1734449440475,-500.0,0.00024999,2]
[345753199,1734449440485,-500.0,0.00024999,2]
[345753200,1734449440496,-500.0,0.00024999,2]
[345753201,1734449440507,-500.0,0.00024999,2]
[345753202,1734449440517,-500.0,0.00024999,2]
[345753203,1734449440527,-500.0,0.00024999,2]
[345753204,1734449440537,-500.0,0.00024999,2]
[345753205,1734449440547,-500.0,0.00024999,2]
[345753206,1734449440557,-500.0,0.00024999,2]
[345753207,1734449440567,-500.0,0.00024999,2]
[345753208,1734449440577,-500.0,0.00024999,2]
[345753209,1734449440586,-500.0,0.00024999,2]
[345753210,1734449440595,-500.0,0.00024999,2]
[345753211,1734449440605,-500.0,0.00024999,2]
[345753212,1734449440616,-500.0,0.00024999,2]
[345753213,1734449440628,-500.0,0.00024999,2]
[345753214,1734449440638,-500.0,0.00024999,2]
[345753215,1734449440647,-500.0,0.00024999,2]
[345753217,1734449440658,-500.0,0.00024999,2]
[345753219,1734449440667,-500.0,0.00024999,2]
[345753221,1734449440677,-500.0,0.00024999,2]
[345753223,1734449440686,-500.0,0.00024999,2]
[345753225,1734449440696,-500.0,0.00024999,2]
[345753226,1734449440711,-500.0,0.00024999,2]
[345753227,1734449440721,-500.0,0.00024999,2]
[345753228,1734449440731,-500.0,0.00024999,2]
[345753229,1734449440741,-500.0,0.00024999,2]
[345753230,1734449440750,-500.0,0.00024999,2]
[345753231,1734449440760,-500.0,0.00024999,2]
[345753232,1734449440769,-500.0,0.00024999,2]
[345753233,1734449440779,-500.0,0.00024999,2]
[345753234,1734449440788,-500.0,0.00024999,2]
[345753235,1734449440797,-500.0,0.00024999,2]
[345753236,1734449440807,-500.0,0.00024999,2]
[345753237,1734449440816,-500.0,0.00024999,2]
[345753238,1734449440825,-500.0,0.00024999,2]
[345753239,1734449440835,-500.0,0.00024999,2]
[345753240,1734449440844,-500.0,0.00024999,2]
[345753241,1734449440964,-500.0,0.00024999,2]
[345753242,1734449440974,-500.0,0.00024999,2]
[345753243,1734449440984,-500.0,0.00024999,2]
[345753244,1734449440994,-500.0,0.00024999,2]
[345753245,1734449441004,-557.39106409,0.00024999,2]
[345753246,1734449441014,-500.0,0.00024999,2]
[345753247,1734449441024,-500.0,0.00024999,2]
[345753248,1734449441034,-500.0,0.00024999,2]
[345753249,1734449441045,-500.0,0.00024999,2]
[345753250,1734449441055,-500.0,0.00024999,2]
[345753251,1734449441064,-500.0,0.00024999,2]
[345753252,1734449441074,-500.0,0.00024999,2]
[345753253,1734449441084,-500.0,0.00024999,2]
[345753254,1734449441093,-500.0,0.00024999,2]
[345753255,1734449441103,-500.0,0.00024999,2]
[345753256,1734449441112,-500.0,0.00024999,2]
[345753257,1734449441122,-500.0,0.00024999,2]
[345753258,1734449441132,-1000.0,0.00025,25]
[345753259,1734449441141,-1499.70666937,0.00025,3]
[345753260,1734449441151,-6000.009999,0.00025,20]
[345753261,1734449441160,-43750.20099996,0.00025,2]
[345753262,1734449441170,-3461.8780772,0.00025,2]
[345753263,1734449441180,-832.9840569,0.00025,2]
[345753264,1734449441190,-9011.20970932,0.00025,2]
[345753265,1734449441199,-151.0,0.00025007,6]
[345753266,1734449441213,-500.0,0.00025173,2]
[345753267,1734449441222,-500.744659,0.00025173,2]
[345753268,1734449441232,-500.0,0.00025194,2]
[345753269,1734449441242,-500.0,0.00025194,2]
[345753270,1734449441251,-1000.0,0.00025204,2]
[345753271,1734449441261,-1000.0,0.00025204,2]
[345753272,1734449441270,-1000.0,0.00025204,2]
[345753273,1734449441279,-668.29118039,0.00025204,2]
[345753274,1734449441289,-500.0,0.00025205,2]
[345753275,1734449441298,-500.0,0.00025205,6]
[345753276,1734449441308,-500.0,0.00025205,6]
[345753277,1734449441318,-888.82,0.00025205,6]
[345753278,1734449441328,-1617.75,0.00025205,6]
[345753279,1734449441338,-979.73,0.00025205,6]
[345753280,1734449441348,-765.64,0.00025205,6]
[345753281,1734449441357,-500.0,0.00025205,6]
[345753282,1734449441367,-1112.55,0.00025205,6]
[345753283,1734449441376,-6168.17,0.00025205,6]
[345753284,1734449441386,-856.93,0.00025205,6]
[345753285,1734449441396,-500.0,0.00025205,6]
[345753286,1734449441406,-500.0,0.00025205,6]
[345753287,1734449441416,-500.0,0.00025205,6]
[345753288,1734449441426,-500.0,0.00025205,6]
[345753289,1734449441436,-1174.52,0.00025205,6]
[345753290,1734449441445,-757.36,0.00025205,6]
[345753291,1734449441459,-500.0,0.00025205,6]
[345753292,1734449441469,-500.0,0.00025205,6]
[345753293,1734449441478,-500.0,0.00025205,6]
[345753294,1734449441488,-500.0,0.00025205,6]
[345753295,1734449441498,-2344.59,0.00025205,6]
[345753296,1734449441508,-719.11,0.00025205,6]
[345753297,1734449441518,-486.8,0.00025205,6]
[345753298,1734449441527,-500.0,0.00025205,6]
[345753299,1734449441537,-500.0,0.00025205,6]
[345753300,1734449441547,-500.0,0.00025205,6]
[345753301,1734449441556,-500.0,0.00025205,6]
[345753302,1734449441566,-1446.5,0.00025205,2]
[345753303,1734449441575,-500.0,0.00025205,6]
[345753304,1734449441584,-201.49,0.00025205,6]
[345753305,1734449441595,-500.0,0.00025205,6]
[345753306,1734449441604,-500.0,0.00025205,6]
[345753307,1734449441613,-1000.0,0.00025221,2]
[345753308,1734449441623,-534.63259217,0.00025254,2]
[345753309,1734449441633,-500.83230514,0.00025275,2]
[345753310,1734449441644,-328.58787968,0.00025275,2]
[345753311,1734449441654,-500.0,0.000253,2]
[345753312,1734449441665,-172.35944,0.00025312,2]
[345753313,1734449441674,-151.0,0.00025331,6]
[345753314,1734449441687,-161.73911472,0.0002537,2]
[345753315,1734449441696,-378.41328324,0.000254,2]
[345753316,1734449441710,-500.0,0.00025479,2]
[345753317,1734449441720,-500.0,0.00025479,6]
[345753318,1734449441731,-888.82,0.00025479,6]
[345753319,1734449441740,-1617.75,0.00025479,6]
[345753320,1734449441751,-979.73,0.00025479,6]
[345753321,1734449441761,-765.64,0.00025479,6]
[345753322,1734449441771,-500.0,0.00025479,6]
[345753323,1734449441781,-1112.55,0.00025479,6]
[345753324,1734449441791,-6168.17,0.00025479,6]
[345753325,1734449441800,-856.93,0.00025479,6]
[345753326,1734449441810,-500.0,0.00025479,6]
[345753327,1734449441820,-500.0,0.00025479,6]
[345753328,1734449441830,-500.0,0.00025479,6]
[345753329,1734449441840,-500.0,0.00025479,6]
[345753330,1734449441850,-1174.52,0.00025479,6]
[345753331,1734449441859,-757.36,0.00025479,6]
[345753332,1734449441869,-500.0,0.00025479,6]
[345753333,1734449441879,-500.0,0.00025479,6]
[345753334,1734449441888,-500.0,0.00025479,6]
[345753335,1734449441898,-500.0,0.00025479,6]
[345753336,1734449441908,-2344.59,0.00025479,6]
[345753337,1734449441918,-719.11,0.00025479,6]
[345753338,1734449441927,-500.0,0.00025479,6]
[345753339,1734449441937,-500.0,0.00025479,6]
[345753340,1734449441947,-1446.5,0.00025479,2]
[345753341,1734449441959,-500.0,0.00025479,6]
[345753342,1734449441969,-500.0,0.00025479,6]
[345753343,1734449441979,-187.28570027,0.00025479,6]
[345753344,1734449441989,-500.0,0.00025521,2]
[345753345,1734449441999,-806.0,0.0002557,2]
[345753346,1734449442009,-10757.32615432,0.00025615,120]
[345753347,1734449442019,-151.0,0.00025654,6]
[345753348,1734449442029,-600.87138377,0.00025721,2]
[345753349,1734449442039,-500.0,0.00025753,2]
[345753350,1734449442048,-500.0,0.00025753,6]
[345753351,1734449442058,-888.82,0.00025753,6]
[345753352,1734449442068,-1617.75,0.00025753,6]
[345753353,1734449442078,-979.73,0.00025753,6]
[345753354,1734449442087,-765.64,0.00025753,6]
[345753355,1734449442097,-302.51496565,0.00025753,6]
[345753356,1734449442107,-1112.55,0.00025753,6]
[345753357,1734449442117,-6168.17,0.00025753,6]
[345753358,1734449442126,-856.93,0.00025753,6]
[345753359,1734449442135,-500.0,0.00025753,6]
[345753360,1734449442144,-500.0,0.00025753,6]
[345753361,1734449442154,-416.95,0.00025753,6]
[345753362,1734449442164,-500.0,0.00025753,6]
[345753363,1734449442173,-1174.52,0.00025753,6]
[345753364,1734449442182,-757.36,0.00025753,6]
[345753365,1734449442192,-500.0,0.00025753,6]
[345753366,1734449442203,-614.18815811,0.00025753,6]
[345753367,1734449442213,-158.16,0.00025753,6]
[345753368,1734449442222,-500.0,0.00025753,6]
[345753369,1734449442232,-2344.59,0.00025753,6]
[345753370,1734449442241,-719.11,0.00025753,6]
[345753371,1734449442251,-500.0,0.00025753,6]
[345753372,1734449442260,-500.0,0.00025753,6]
[345753373,1734449442269,-1446.5,0.00025753,2]
[345753374,1734449442278,-500.0,0.00025753,6]
[345753375,1734449442288,-400.0,0.00025753,2]